[Event "*** Titled Tuesday Blitz"]
[Site "Chess.com"]
[Date "2020.05.05"]
[Round "7"]
[White "anon132639"]
[Black "TERMINATOR_PC"]
[Result "1-0"]
[WhiteElo "2645"]
[BlackElo "2466"]
[TimeControl "180+1"]
[EndTime "11:19:12 PDT"]
[Termination "anon132639 won by resignation"]

1. d4 {[%clk 0:03:00.9]} 1... Nf6 {[%clk 0:02:58.8]} 2. Nf3 {[%clk 0:03:01.4]}
2... g6 {[%clk 0:02:58.8]} 3. c4 {[%clk 0:03:01.7]} 3... Bg7 {[%clk 0:02:58.7]}
4. Nc3 {[%clk 0:03:02.4]} 4... O-O {[%clk 0:02:59.3]} 5. e4 {[%clk 0:03:03.1]}
5... d6 {[%clk 0:02:59.9]} 6. h3 {[%clk 0:03:03.8]} 6... Na6 {[%clk 0:03:00.2]}
7. Be3 {[%clk 0:03:03.4]} 7... e5 {[%clk 0:02:57.8]} 8. d5 {[%clk 0:03:03.8]}
8... Nd7 {[%clk 0:02:58.2]} 9. a3 {[%clk 0:03:03.5]} 9... f5 {[%clk 0:02:58.2]}
10. g4 {[%clk 0:02:53.8]} 10... Nf6 {[%clk 0:02:01.1]} 11. gxf5 {[%clk
0:02:51.1]} 11... gxf5 {[%clk 0:02:01.3]} 12. Rg1 {[%clk 0:02:42.7]} 12... f4
{[%clk 0:01:49.2]} 13. Bd2 {[%clk 0:02:43]} 13... Kh8 {[%clk 0:01:48.1]} 14. Qc2
{[%clk 0:02:36.2]} 14... Bh6 {[%clk 0:01:32.2]} 15. O-O-O {[%clk 0:02:36.1]}
15... Bd7 {[%clk 0:01:32.4]} 16. Kb1 {[%clk 0:02:29.8]} 16... Qe8 {[%clk
0:01:20.4]} 17. Be2 {[%clk 0:02:24.6]} 17... Nc5 {[%clk 0:01:16]} 18. Nh4 {[%clk
0:02:17.5]} 18... Na4 {[%clk 0:01:13.5]} 19. Nf5 {[%clk 0:02:03.5]} 19... Bxf5
{[%clk 0:00:43.8]} 20. exf5 {[%clk 0:02:04.4]} 20... Nxc3+ {[%clk 0:00:43.3]}
21. Bxc3 {[%clk 0:02:03.8]} 21... Rg8 {[%clk 0:00:33.3]} 22. c5 {[%clk
0:02:03.2]} 22... Qd7 {[%clk 0:00:23.1]} 23. Bf3 {[%clk 0:01:56.6]} 23... Rxg1
{[%clk 0:00:22.2]} 24. Rxg1 {[%clk 0:01:57.5]} 24... Rg8 {[%clk 0:00:20.1]} 25.
Rd1 {[%clk 0:01:51.5]} 25... Re8 {[%clk 0:00:14.5]} 26. c6 {[%clk 0:01:48.8]}
26... bxc6 {[%clk 0:00:14]} 27. dxc6 {[%clk 0:01:49.7]} 27... Qf7 {[%clk
0:00:11.3]} 28. Qa4 {[%clk 0:01:46.6]} 28... Bg7 {[%clk 0:00:09.2]} 29. Qxa7
{[%clk 0:01:34.1]} 29... e4 {[%clk 0:00:09.7]} 30. Be2 {[%clk 0:01:34.5]} 30...
e3 {[%clk 0:00:03.2]} 31. f3 {[%clk 0:01:33.4]} 31... Nd5 {[%clk 0:00:02.7]} 32.
Bxg7+ {[%clk 0:01:33.9]} 32... Kxg7 {[%clk 0:00:03.6]} 33. Qd4+ {[%clk
0:01:31.8]} 33... Nf6 {[%clk 0:00:04]} 34. Qxf4 {[%clk 0:01:31.7]} 34... Kh8
{[%clk 0:00:03.5]} 35. Qc4 {[%clk 0:01:30.4]} 35... Qe7 {[%clk 0:00:02.4]} 36.
Rg1 {[%clk 0:01:27.5]} 36... d5 {[%clk 0:00:02.9]} 37. Qd4 {[%clk 0:01:27]}
37... Qe5 {[%clk 0:00:03.2]} 38. Qxe5 {[%clk 0:01:26.8]} 38... Rxe5 {[%clk
0:00:04.1]} 39. Bd3 {[%clk 0:01:26.3]} 39... d4 {[%clk 0:00:04.3]} 40. f4 {[%clk
0:01:19.9]} 40... Rc5 {[%clk 0:00:03.7]} 41. Rc1 {[%clk 0:01:20.5]} 41... Rxc1+
{[%clk 0:00:02.2]} 42. Kxc1 {[%clk 0:01:21.4]} 42... Nd5 {[%clk 0:00:03]} 43.
Kd1 {[%clk 0:01:20.3]} 43... Nxf4 {[%clk 0:00:03.4]} 44. Kc2 {[%clk 0:01:00.8]}
44... Kg7 {[%clk 0:00:02.9]} 45. b4 {[%clk 0:01:00.9]} 45... Kf6 {[%clk
0:00:02.8]} 46. b5 {[%clk 0:00:58.3]} 46... Nd5 {[%clk 0:00:02.9]} 47. Be4
{[%clk 0:00:45]} 47... Nb6 {[%clk 0:00:02]} 48. Kd3 {[%clk 0:00:43.2]} 48... Ke5
{[%clk 0:00:02.5]} 49. Bf3 {[%clk 0:00:42.7]} 49... Na4 {[%clk 0:00:01.9]} 50.
f6 {[%clk 0:00:41.4]} 50... Nc5+ {[%clk 0:00:02.1]} 51. Kc4 {[%clk 0:00:41.8]}
51... d3 {[%clk 0:00:02.2]} 52. f7 {[%clk 0:00:41.7]} 52... Ne6 {[%clk
0:00:01.8]} 53. Kxd3 {[%clk 0:00:41.8]} 53... Kf6 {[%clk 0:00:02.3]} 54. Kxe3
{[%clk 0:00:41]} 54... Nd8 {[%clk 0:00:02.7]} 55. Bd5 {[%clk 0:00:41.7]} 55...
Ke7 {[%clk 0:00:02.5]} 56. a4 {[%clk 0:00:41.5]} 1-0

[Event "*** Titled Tuesday Blitz"]
[Site "Chess.com"]
[Date "2020.05.05"]
[Round "7"]
[White "Falia-p"]
[Black "GelmanAlexander"]
[Result "1-0"]
[WhiteElo "2388"]
[BlackElo "2514"]
[TimeControl "180+1"]
[EndTime "11:19:13 PDT"]
[Termination "Falia-p won by checkmate"]

1. e4 {[%clk 0:03:00.9]} 1... c5 {[%clk 0:02:59]} 2. Nf3 {[%clk 0:03:00.6]} 2...
e6 {[%clk 0:02:59.4]} 3. d4 {[%clk 0:03:00.4]} 3... cxd4 {[%clk 0:02:59.8]} 4.
Nxd4 {[%clk 0:03:01.3]} 4... d6 {[%clk 0:03:00.4]} 5. Nc3 {[%clk 0:03:00.7]}
5... a6 {[%clk 0:03:00.8]} 6. h3 {[%clk 0:03:00]} 6... b5 {[%clk 0:02:59]} 7. g4
{[%clk 0:02:59.3]} 7... Bb7 {[%clk 0:02:59.4]} 8. Bg2 {[%clk 0:02:58.7]} 8...
Ne7 {[%clk 0:02:57.2]} 9. Be3 {[%clk 0:02:57.9]} 9... Nbc6 {[%clk 0:02:57]} 10.
Qe2 {[%clk 0:02:50.6]} 10... Nxd4 {[%clk 0:02:49.2]} 11. Bxd4 {[%clk 0:02:50.5]}
11... Nc6 {[%clk 0:02:49.5]} 12. Be3 {[%clk 0:02:48.5]} 12... Rc8 {[%clk
0:02:45.4]} 13. f4 {[%clk 0:02:44.7]} 13... Na5 {[%clk 0:02:36.1]} 14. O-O-O
{[%clk 0:02:35.4]} 14... Nc4 {[%clk 0:02:34.1]} 15. Bd4 {[%clk 0:02:35.1]} 15...
Qa5 {[%clk 0:02:22.6]} 16. Kb1 {[%clk 0:02:20.2]} 16... Qb4 {[%clk 0:02:14.3]}
17. Nd5 {[%clk 0:02:01.9]} 17... exd5 {[%clk 0:02:02.2]} 18. exd5+ {[%clk
0:01:59.1]} 18... Kd7 {[%clk 0:01:51.2]} 19. Be4 {[%clk 0:01:42.1]} 19... Kc7
{[%clk 0:01:27.9]} 20. Rd3 {[%clk 0:01:37]} 20... Kb8 {[%clk 0:01:21.6]} 21. c3
{[%clk 0:01:20.9]} 21... Qa5 {[%clk 0:01:17.7]} 22. Bf5 {[%clk 0:01:01.6]} 22...
Rd8 {[%clk 0:01:13.2]} 23. Re1 {[%clk 0:00:53.3]} 23... Bxd5 {[%clk 0:00:59.1]}
24. Bg1 {[%clk 0:00:52.3]} 24... Bb7 {[%clk 0:00:50.1]} 25. Qf2 {[%clk
0:00:52.1]} 25... g6 {[%clk 0:00:32.5]} 26. Qa7+ {[%clk 0:00:46.8]} 26... Kc7
{[%clk 0:00:33]} 27. Be4 {[%clk 0:00:39.5]} 27... Rb8 {[%clk 0:00:23.4]} 28. b3
{[%clk 0:00:34.2]} 28... Na3+ {[%clk 0:00:16.7]} 29. Kb2 {[%clk 0:00:31.5]}
29... Bg7 {[%clk 0:00:16.6]} 30. Bxb7 {[%clk 0:00:27.4]} 30... b4 {[%clk
0:00:06.8]} 31. Re7+ {[%clk 0:00:19.8]} 31... Kd8 {[%clk 0:00:06.3]} 32. Bb6+
{[%clk 0:00:18.3]} 32... Kxe7 {[%clk 0:00:06.6]} 33. Bxa5 {[%clk 0:00:17.4]}
33... bxc3+ {[%clk 0:00:06]} 34. Bxc3 {[%clk 0:00:17]} 34... Bxc3+ {[%clk
0:00:05.8]} 35. Rxc3 {[%clk 0:00:17.3]} 35... Nb5 {[%clk 0:00:06.7]} 36. Qe3+
{[%clk 0:00:15]} 36... Kf6 {[%clk 0:00:06.6]} 37. Rd3 {[%clk 0:00:12.2]} 37...
Rxb7 {[%clk 0:00:05.8]} 38. a4 {[%clk 0:00:09.3]} 38... Rhb8 {[%clk 0:00:02]}
39. axb5 {[%clk 0:00:08.9]} 39... Rxb5 {[%clk 0:00:02.9]} 40. Qd4+ {[%clk
0:00:09.2]} 40... Ke7 {[%clk 0:00:03.2]} 41. Re3+ {[%clk 0:00:09.7]} 41... Kf8
{[%clk 0:00:03.4]} 42. Qh8# {[%clk 0:00:08.1]} 1-0

[Event "*** Titled Tuesday Blitz"]
[Site "Chess.com"]
[Date "2020.05.05"]
[Round "7"]
[White "vwnv7"]
[Black "Witaliss"]
[Result "1-0"]
[WhiteElo "2338"]
[BlackElo "2460"]
[TimeControl "180+1"]
[EndTime "11:19:13 PDT"]
[Termination "vwnv7 won by checkmate"]

1. c4 {[%clk 0:03:00.9]} 1... c6 {[%clk 0:02:59.3]} 2. Nf3 {[%clk 0:02:58.9]}
2... Nf6 {[%clk 0:02:58.4]} 3. d4 {[%clk 0:02:57]} 3... d6 {[%clk 0:02:56.8]} 4.
Nc3 {[%clk 0:02:55.2]} 4... Bg4 {[%clk 0:02:55.8]} 5. g3 {[%clk 0:02:53.6]} 5...
Nbd7 {[%clk 0:02:54.1]} 6. Bg2 {[%clk 0:02:53.1]} 6... e5 {[%clk 0:02:53.8]} 7.
h3 {[%clk 0:02:47]} 7... Bh5 {[%clk 0:02:53.1]} 8. O-O {[%clk 0:02:29.4]} 8...
Be7 {[%clk 0:02:52.1]} 9. dxe5 {[%clk 0:02:19.7]} 9... dxe5 {[%clk 0:02:51.2]}
10. b3 {[%clk 0:02:13.2]} 10... O-O {[%clk 0:02:49]} 11. Bb2 {[%clk 0:02:13.1]}
11... Qc7 {[%clk 0:02:48.5]} 12. Nh4 {[%clk 0:02:07.9]} 12... Rfe8 {[%clk
0:02:46.2]} 13. Qc2 {[%clk 0:01:48.8]} 13... a5 {[%clk 0:02:41]} 14. Rad1 {[%clk
0:01:38.1]} 14... Nc5 {[%clk 0:02:39.7]} 15. Nf5 {[%clk 0:01:32.2]} 15... Bf8
{[%clk 0:02:38.2]} 16. g4 {[%clk 0:01:28.6]} 16... Bg6 {[%clk 0:02:37.2]} 17. e4
{[%clk 0:01:28.5]} 17... Ne6 {[%clk 0:02:33.7]} 18. Ne2 {[%clk 0:01:26.8]} 18...
Red8 {[%clk 0:02:17.7]} 19. Qc3 {[%clk 0:01:25.5]} 19... Nd7 {[%clk 0:02:12]}
20. f4 {[%clk 0:01:21.6]} 20... exf4 {[%clk 0:01:57.4]} 21. h4 {[%clk
0:01:13.6]} 21... f6 {[%clk 0:01:54.1]} 22. h5 {[%clk 0:01:08.4]} 22... Bf7
{[%clk 0:01:50.2]} 23. h6 {[%clk 0:01:06.1]} 23... Bb4 {[%clk 0:01:37.2]} 24.
Qc1 {[%clk 0:00:56.2]} 24... g6 {[%clk 0:01:24.8]} 25. Nfd4 {[%clk 0:00:37.2]}
25... Bc5 {[%clk 0:01:18.2]} 26. Kh1 {[%clk 0:00:36.5]} 26... Nxd4 {[%clk
0:01:11]} 27. Nxd4 {[%clk 0:00:35.5]} 27... g5 {[%clk 0:01:08.4]} 28. Nf5 {[%clk
0:00:35.1]} 28... Ne5 {[%clk 0:01:04.3]} 29. a3 {[%clk 0:00:31.2]} 29... Be6
{[%clk 0:00:59.8]} 30. b4 {[%clk 0:00:20.3]} 30... axb4 {[%clk 0:00:57]} 31.
axb4 {[%clk 0:00:20]} 31... Bxb4 {[%clk 0:00:57.1]} 32. c5 {[%clk 0:00:17.2]}
32... Rxd1 {[%clk 0:00:45.8]} 33. Rxd1 {[%clk 0:00:16.1]} 33... Rd8 {[%clk
0:00:45.4]} 34. Nd6 {[%clk 0:00:12.9]} 34... Nxg4 {[%clk 0:00:44.1]} 35. Bh3
{[%clk 0:00:10.8]} 35... Nf2+ {[%clk 0:00:43]} 36. Kh2 {[%clk 0:00:10.9]} 36...
Nxh3 {[%clk 0:00:41.9]} 37. Bxf6 {[%clk 0:00:10.2]} 37... Rf8 {[%clk 0:00:37.7]}
38. Ba1 {[%clk 0:00:09]} 38... Nf2 {[%clk 0:00:28.9]} 39. Qb2 {[%clk 0:00:08.4]}
39... Ng4+ {[%clk 0:00:26.9]} 40. Kh1 {[%clk 0:00:06.3]} 40... Rf6 {[%clk
0:00:23.8]} 41. Qxb4 {[%clk 0:00:04.3]} 41... Rxh6+ {[%clk 0:00:23.6]} 42. Kg1
{[%clk 0:00:04]} 42... Ne3 {[%clk 0:00:20.6]} 43. Qd4 {[%clk 0:00:03.7]} 43...
Kf8 {[%clk 0:00:14.7]} 44. Qh8+ {[%clk 0:00:03.3]} 44... Bg8 {[%clk 0:00:14.2]}
45. Qe5 {[%clk 0:00:02.1]} 45... Nxd1 {[%clk 0:00:12.8]} 46. Qe8# {[%clk
0:00:02]} 1-0

[Event "*** Titled Tuesday Blitz"]
[Site "Chess.com"]
[Date "2020.05.05"]
[Round "7"]
[White "Tsyhanchuk_Stanislav"]
[Black "DivyaDeshmukh23"]
[Result "1-0"]
[WhiteElo "2583"]
[BlackElo "2401"]
[TimeControl "180+1"]
[EndTime "11:19:16 PDT"]
[Termination "Tsyhanchuk_Stanislav won by resignation"]

1. e4 {[%clk 0:02:56.6]} 1... c5 {[%clk 0:02:59.1]} 2. Nf3 {[%clk 0:02:56.3]}
2... d6 {[%clk 0:02:57.9]} 3. d4 {[%clk 0:02:57.2]} 3... cxd4 {[%clk 0:02:58.8]}
4. Nxd4 {[%clk 0:02:57.3]} 4... Nf6 {[%clk 0:02:56.4]} 5. Nc3 {[%clk 0:02:57.4]}
5... a6 {[%clk 0:02:52.1]} 6. Bg5 {[%clk 0:02:56.3]} 6... Nbd7 {[%clk
0:02:51.4]} 7. f4 {[%clk 0:02:50.8]} 7... Qc7 {[%clk 0:02:48.8]} 8. Qf3 {[%clk
0:02:41.4]} 8... b5 {[%clk 0:02:47.9]} 9. O-O-O {[%clk 0:02:32.5]} 9... Bb7
{[%clk 0:02:45]} 10. a3 {[%clk 0:02:25.9]} 10... e6 {[%clk 0:02:37]} 11. Bd3
{[%clk 0:02:24.6]} 11... Be7 {[%clk 0:02:32.5]} 12. g4 {[%clk 0:02:15.7]} 12...
Rc8 {[%clk 0:02:12.4]} 13. Bh4 {[%clk 0:02:12.2]} 13... h6 {[%clk 0:02:07.5]}
14. Bg3 {[%clk 0:02:07.7]} 14... g5 {[%clk 0:01:57.4]} 15. f5 {[%clk 0:01:45]}
15... e5 {[%clk 0:01:45]} 16. Nb3 {[%clk 0:01:34.6]} 16... Nc5 {[%clk
0:01:43.7]} 17. Nxc5 {[%clk 0:01:27.3]} 17... dxc5 {[%clk 0:01:43.3]} 18. Nd5
{[%clk 0:01:22.3]} 18... Bxd5 {[%clk 0:01:18.8]} 19. exd5 {[%clk 0:01:23.2]}
19... c4 {[%clk 0:01:18.2]} 20. Be4 {[%clk 0:01:20.7]} 20... c3 {[%clk
0:01:14.8]} 21. b4 {[%clk 0:00:51.2]} 21... Qc4 {[%clk 0:00:42.3]} 22. d6 {[%clk
0:00:42.8]} 22... Qa2 {[%clk 0:00:37.2]} 23. Bc6+ {[%clk 0:00:40.9]} 23... Nd7
{[%clk 0:00:24.2]} 24. Qxc3 {[%clk 0:00:18.3]} 24... Rxc6 {[%clk 0:00:17.6]} 25.
Qxc6 {[%clk 0:00:17.1]} 25... Qxa3+ {[%clk 0:00:18]} 26. Kd2 {[%clk 0:00:16.6]}
26... Qxb4+ {[%clk 0:00:18]} 27. Ke2 {[%clk 0:00:16.8]} 27... Qxg4+ {[%clk
0:00:16]} 28. Kf2 {[%clk 0:00:16.4]} 28... Qxf5+ {[%clk 0:00:15.3]} 29. Kg2
{[%clk 0:00:13.6]} 29... Bd8 {[%clk 0:00:14.9]} 30. Rhf1 {[%clk 0:00:12.4]}
30... Qg6 {[%clk 0:00:12.6]} 31. Rde1 {[%clk 0:00:11.9]} 31... f6 {[%clk
0:00:12.3]} 32. Qd5 {[%clk 0:00:10.7]} 32... Qxc2+ {[%clk 0:00:11.7]} 33. Rf2
{[%clk 0:00:10]} 33... Qc5 {[%clk 0:00:11]} 34. Qe6+ {[%clk 0:00:09.7]} 34...
Kf8 {[%clk 0:00:11.1]} 35. Qxd7 {[%clk 0:00:09.9]} 35... Qd5+ {[%clk 0:00:11.5]}
36. Kg1 {[%clk 0:00:09.7]} 36... Bb6 {[%clk 0:00:11.3]} 37. Rf1 {[%clk
0:00:09.4]} 37... Bxf2+ {[%clk 0:00:08.4]} 38. Rxf2 {[%clk 0:00:10.3]} 38...
Qd1+ {[%clk 0:00:08]} 39. Kg2 {[%clk 0:00:10.6]} 39... Qd5+ {[%clk 0:00:08.3]}
40. Kg1 {[%clk 0:00:10.5]} 40... Qd1+ {[%clk 0:00:08.2]} 41. Rf1 {[%clk
0:00:11]} 41... Qd4+ {[%clk 0:00:08.5]} 42. Bf2 {[%clk 0:00:11.3]} 42... Qd5
{[%clk 0:00:03.9]} 43. Qe7+ {[%clk 0:00:11.1]} 43... Kg8 {[%clk 0:00:04.1]} 44.
d7 {[%clk 0:00:12]} 1-0

[Event "*** Titled Tuesday Blitz"]
[Site "Chess.com"]
[Date "2020.05.05"]
[Round "7"]
[White "ChronicUnhappiness"]
[Black "Al_Shima"]
[Result "1/2-1/2"]
[WhiteElo "2313"]
[BlackElo "2447"]
[TimeControl "180+1"]
[EndTime "11:19:16 PDT"]
[Termination "Game drawn by repetition"]

1. d4 {[%clk 0:03:00.9]} 1... Nf6 {[%clk 0:02:59]} 2. c4 {[%clk 0:02:58.4]} 2...
Nc6 {[%clk 0:02:58.6]} 3. Nf3 {[%clk 0:02:57.5]} 3... d6 {[%clk 0:02:55.4]} 4.
Nc3 {[%clk 0:02:56.4]} 4... e5 {[%clk 0:02:54.6]} 5. d5 {[%clk 0:02:52.1]} 5...
Nb8 {[%clk 0:02:53.8]} 6. e4 {[%clk 0:02:52.1]} 6... Be7 {[%clk 0:02:52.5]} 7.
Bd3 {[%clk 0:02:51]} 7... O-O {[%clk 0:02:52.3]} 8. O-O {[%clk 0:02:49.3]} 8...
a5 {[%clk 0:02:51.9]} 9. h3 {[%clk 0:02:36.6]} 9... Na6 {[%clk 0:02:45.8]} 10.
Be3 {[%clk 0:02:34.8]} 10... b6 {[%clk 0:02:45.8]} 11. a3 {[%clk 0:02:33.3]}
11... Nc5 {[%clk 0:02:43.9]} 12. Bc2 {[%clk 0:02:28.3]} 12... Ba6 {[%clk
0:02:36.3]} 13. b4 {[%clk 0:02:27.7]} 13... Ncd7 {[%clk 0:02:33.4]} 14. Nd2
{[%clk 0:02:16.5]} 14... Bc8 {[%clk 0:02:26.5]} 15. Ba4 {[%clk 0:02:08.9]} 15...
Ne8 {[%clk 0:02:21.7]} 16. Bc6 {[%clk 0:02:07.6]} 16... Ra6 {[%clk 0:02:13.6]}
17. Qe2 {[%clk 0:02:01.5]} 17... Nb8 {[%clk 0:02:08.4]} 18. Bb5 {[%clk
0:01:29.7]} 18... Ra8 {[%clk 0:02:07.1]} 19. Rfc1 {[%clk 0:01:26.8]} 19... Bg5
{[%clk 0:01:57.2]} 20. c5 {[%clk 0:01:26.1]} 20... axb4 {[%clk 0:01:55.2]} 21.
axb4 {[%clk 0:01:25.4]} 21... Rxa1 {[%clk 0:01:53.5]} 22. Rxa1 {[%clk
0:01:26.3]} 22... Bxe3 {[%clk 0:01:52.4]} 23. Qxe3 {[%clk 0:01:26.3]} 23... bxc5
{[%clk 0:01:52.3]} 24. bxc5 {[%clk 0:01:25.7]} 24... dxc5 {[%clk 0:01:41.1]} 25.
Nc4 {[%clk 0:01:22]} 25... Nd6 {[%clk 0:01:34.5]} 26. Qxc5 {[%clk 0:01:21.1]}
26... Nd7 {[%clk 0:01:24.7]} 27. Bxd7 {[%clk 0:01:18.8]} 27... Bxd7 {[%clk
0:01:11]} 28. Nxe5 {[%clk 0:01:18.8]} 28... Re8 {[%clk 0:01:01.8]} 29. Nxd7
{[%clk 0:01:12.2]} 29... Qxd7 {[%clk 0:01:02.7]} 30. Ra7 {[%clk 0:01:10.6]}
30... Nxe4 {[%clk 0:00:27.6]} 31. Nxe4 {[%clk 0:01:11.5]} 31... Rxe4 {[%clk
0:00:27.1]} 32. Qxc7 {[%clk 0:01:11.2]} 32... Re1+ {[%clk 0:00:15.3]} 33. Kh2
{[%clk 0:01:09.8]} 33... Qxc7+ {[%clk 0:00:15.5]} 34. Rxc7 {[%clk 0:00:56.1]}
34... Kf8 {[%clk 0:00:15.5]} 35. g4 {[%clk 0:00:38]} 35... Rd1 {[%clk
0:00:13.4]} 36. Rc5 {[%clk 0:00:33.2]} 36... Ke7 {[%clk 0:00:12.7]} 37. Kg3
{[%clk 0:00:34.1]} 37... Kd6 {[%clk 0:00:12.8]} 38. Ra5 {[%clk 0:00:32.4]} 38...
Rxd5 {[%clk 0:00:12.2]} 39. Ra7 {[%clk 0:00:25]} 39... Ke6 {[%clk 0:00:11.7]}
40. f4 {[%clk 0:00:23.8]} 40... Rd3+ {[%clk 0:00:11.3]} 41. Kh4 {[%clk
0:00:23.3]} 41... h6 {[%clk 0:00:11.7]} 42. Ra6+ {[%clk 0:00:15.9]} 42... Kd5
{[%clk 0:00:09.7]} 43. Ra7 {[%clk 0:00:09.8]} 43... Ke6 {[%clk 0:00:09.6]} 44.
Ra6+ {[%clk 0:00:09.1]} 44... Ke7 {[%clk 0:00:09.8]} 45. Ra7+ {[%clk 0:00:08.5]}
45... Kf6 {[%clk 0:00:10.1]} 46. Ra6+ {[%clk 0:00:08.2]} 46... Ke7 {[%clk
0:00:10.2]} 47. Ra7+ {[%clk 0:00:08.2]} 47... Ke6 {[%clk 0:00:10.1]} 1/2-1/2

[Event "*** Titled Tuesday Blitz"]
[Site "Chess.com"]
[Date "2020.05.05"]
[Round "7"]
[White "TheBigBoss04"]
[Black "1random"]
[Result "1-0"]
[WhiteElo "2711"]
[BlackElo "2525"]
[TimeControl "180+1"]
[EndTime "11:19:18 PDT"]
[Termination "TheBigBoss04 won on time"]

1. d4 {[%clk 0:03:00.9]} 1... d5 {[%clk 0:02:56.7]} 2. Bf4 {[%clk 0:03:00.4]}
2... c5 {[%clk 0:02:56.9]} 3. e3 {[%clk 0:02:59.5]} 3... cxd4 {[%clk 0:02:57]}
4. exd4 {[%clk 0:02:59]} 4... Nc6 {[%clk 0:02:57.9]} 5. c3 {[%clk 0:02:56.6]}
5... f6 {[%clk 0:02:58.1]} 6. Nf3 {[%clk 0:02:55.8]} 6... g5 {[%clk 0:02:57.7]}
7. Bg3 {[%clk 0:02:50.5]} 7... Bg7 {[%clk 0:02:45.7]} 8. Bd3 {[%clk 0:02:47]}
8... e5 {[%clk 0:02:42.9]} 9. dxe5 {[%clk 0:02:46.2]} 9... fxe5 {[%clk
0:02:43.8]} 10. O-O {[%clk 0:02:27.9]} 10... e4 {[%clk 0:02:32.4]} 11. Re1
{[%clk 0:02:26.9]} 11... Kf8 {[%clk 0:01:33.5]} 12. Bxe4 {[%clk 0:02:26]} 12...
dxe4 {[%clk 0:01:32.4]} 13. Bd6+ {[%clk 0:02:20.8]} 13... Nge7 {[%clk
0:01:15.9]} 14. Nxg5 {[%clk 0:02:18.3]} 14... Bf5 {[%clk 0:00:49.1]} 15. Rxe4
{[%clk 0:01:51.2]} 15... Bxe4 {[%clk 0:00:35.2]} 16. Ne6+ {[%clk 0:01:48.4]}
16... Kf7 {[%clk 0:00:35.8]} 17. Nxd8+ {[%clk 0:01:44.6]} 17... Rhxd8 {[%clk
0:00:36.7]} 18. Qh5+ {[%clk 0:01:36.5]} 18... Kg8 {[%clk 0:00:26.1]} 19. Bxe7
{[%clk 0:01:28.5]} 19... Nxe7 {[%clk 0:00:26.1]} 20. Na3 {[%clk 0:01:22.9]}
20... Nc6 {[%clk 0:00:17.6]} 21. Re1 {[%clk 0:01:17.5]} 21... Bg6 {[%clk
0:00:15.3]} 22. Qb5 {[%clk 0:01:15.6]} 22... Rd7 {[%clk 0:00:15.2]} 23. h4
{[%clk 0:01:13.2]} 23... Rf8 {[%clk 0:00:10.3]} 24. h5 {[%clk 0:01:05.5]} 24...
Bf7 {[%clk 0:00:10.3]} 25. Qg5 {[%clk 0:01:01.5]} 25... h6 {[%clk 0:00:09]} 26.
Qg4 {[%clk 0:00:59.7]} 26... Rdd8 {[%clk 0:00:05.2]} 27. Re3 {[%clk 0:00:46.6]}
27... Kh8 {[%clk 0:00:04.7]} 28. Rg3 {[%clk 0:00:26.5]} 28... Rg8 {[%clk
0:00:05]} 29. Qe2 {[%clk 0:00:12.8]} 29... Rde8 {[%clk 0:00:05.7]} 30. Re3
{[%clk 0:00:11.3]} 30... Rd8 {[%clk 0:00:04.4]} 31. Nc4 {[%clk 0:00:08.2]} 31...
Bd5 {[%clk 0:00:04.1]} 32. Rg3 {[%clk 0:00:04.4]} 32... Bf6 {[%clk 0:00:03.4]}
33. Rxg8+ {[%clk 0:00:03.3]} 33... Rxg8 {[%clk 0:00:04.3]} 34. Ne3 {[%clk
0:00:03.9]} 34... Bxa2 {[%clk 0:00:02.5]} 35. Qf3 {[%clk 0:00:03.5]} 35... Bg7
{[%clk 0:00:02.2]} 36. c4 {[%clk 0:00:03]} 36... b6 {[%clk 0:00:01.2]} 37. Qxc6
{[%clk 0:00:02.9]} 37... Bb1 {[%clk 0:00:01.2]} 38. Qd5 {[%clk 0:00:02.4]} 38...
Bxb2 {[%clk 0:00:01.1]} 39. Nf5 {[%clk 0:00:01.8]} 39... Bxf5 {[%clk 0:00:01.1]}
40. Qxf5 {[%clk 0:00:01.8]} 1-0